bitfinex/quotes_SOLUSD_20250803
["timestamp","ask_amount","ask_price","bid_price","bid_amount"]
[1754182439199,10.07608262,159.92,159.88,0.06]
[1754182439499,26.19076659,159.89,159.88,0.06]
[1754182439687,26.86076659,159.89,159.88,0.06]
[1754182439893,9.40608262,159.89,159.88,0.06]
[1754182440196,10.07608262,159.89,159.88,0.06]
[1754182440672,10.07608262,159.89,159.86,0.06]
[1754182440873,26.19076659,159.87,159.84,0.06]
[1754182441079,26.19076659,159.87,159.77,0.7]
[1754182441080,16.78468397,159.84,159.75,0.06]
[1754182441269,9.40608262,159.77,159.76,4.64598717]
[1754182441598,9.40608262,159.77,159.75,4.70598717]
[1754182441801,9.40608262,159.77,159.76,4.64598717]
[1754182442172,9.40608262,159.77,159.75,0.06]
[1754182442374,9.40608262,159.77,159.75,4.69708601]
[1754182443070,9.40608262,159.77,159.75,0.06]
[1754182443296,9.40608262,159.76,159.75,4.69854708]
[1754182443487,9.40608262,159.76,159.75,0.06]
[1754182443488,10.07608262,159.76,159.75,0.06]
[1754182443797,16.78468397,159.81,159.75,0.76]
[1754182443976,9.40608262,159.8,159.75,0.76]
[1754182444181,9.40608262,159.79,159.75,0.76]
[1754182444396,9.40608262,159.79,159.76,0.7]
[1754182444579,26.0,159.83,159.77,9.40608262]
[1754182444893,9.40608262,159.78,159.75,0.06]
[1754182445113,9.40608262,159.76,159.75,0.06]
[1754182446590,9.40608262,159.8,159.75,10.16608262]
[1754182447110,9.40608262,159.8,159.76,0.71]
[1754182447310,9.40608262,159.8,159.75,9.46608262]
[1754182447628,9.40608262,159.8,159.77,0.71]
[1754182447797,9.40608262,159.79,159.77,0.71]
[1754182450198,0.67,159.82,159.77,0.71]
[1754182450407,9.40608262,159.81,159.78,0.71]
[1754182451127,9.40608262,159.8,159.78,0.71]
[1754182451343,9.40608262,159.8,159.75,0.06]
[1754182451344,9.40608262,159.8,159.75,9.46608262]
[1754182451499,9.40608262,159.8,159.76,0.71]
[1754182451829,9.40608262,159.8,159.77,0.71]
[1754182452504,0.68,159.83,159.77,0.71]
[1754182452716,9.40608262,159.8,159.77,0.71]
[1754182452940,5.88781929,159.8,159.77,0.71]
[1754182454019,5.88781929,159.8,159.78,0.71]
[1754182454409,5.88781929,159.81,159.78,0.71]
[1754182454957,0.68,159.84,159.79,0.71]
[1754182455127,5.88781929,159.82,159.77,5.88781929]
[1754182455437,5.88781929,159.8,159.75,5.94781929]
[1754182455636,5.88781929,159.8,159.76,0.71]
[1754182455843,15.947819,159.88,159.75,5.91619374]
[1754182456046,5.88781929,159.8,159.77,0.71]
[1754182456235,5.88781929,159.8,159.75,5.91619374]
[1754182456417,5.88781929,159.78,159.75,0.02837445]
[1754182456622,5.88781929,159.78,159.75,4.64358397]
[1754182456845,6.56781929,159.78,159.75,0.02837445]
[1754182457218,5.88781929,159.78,159.75,0.02837445]
[1754182457413,5.88781929,159.78,159.75,0.73837445]
[1754182458935,0.68,159.8,159.75,0.73837445]
[1754182459141,5.88781929,159.78,159.75,0.73837445]
[1754182459335,6.56781929,159.79,159.75,0.73837445]
[1754182460224,5.88781929,159.77,159.75,0.02837445]
[1754182460543,6.56781929,159.78,159.75,0.02837445]
[1754182460953,0.68,159.8,159.75,0.73837445]
[1754182461120,6.56781929,159.8,159.76,0.71]
[1754182461554,0.68,159.83,159.77,0.71]
[1754182461729,5.88781929,159.82,159.77,6.59781929]
[1754182461924,0.68,159.83,159.78,6.59781929]
[1754182461925,5.88781929,159.83,159.78,6.59781929]
[1754182462134,5.88781929,159.83,159.79,0.71]
[1754182462341,5.88781929,159.84,159.8,0.71]
[1754182462547,6.56781929,159.84,159.79,5.88781929]
[1754182462744,6.56781929,159.83,159.77,48.01]
[1754182462936,5.88781929,159.81,159.77,48.01]
[1754182463142,6.56781929,159.82,159.77,48.01]
[1754182463534,6.56781929,159.82,159.77,53.89781929]
[1754182464151,6.56781929,159.82,159.77,48.01]
[1754182464454,6.56781929,159.81,159.77,47.3]
[1754182464626,6.56781929,159.81,159.77,48.01]
[1754182465064,0.68,159.81,159.77,53.89781929]
[1754182465251,5.91781929,159.82,159.77,53.89781929]
[1754182465427,6.59781929,159.82,159.77,53.89781929]
[1754182467141,6.59781929,159.82,159.78,0.71]
[1754182467748,5.91781929,159.82,159.79,0.71]
[1754182467949,0.03,159.82,159.79,0.71]
[1754182468144,0.03,159.82,159.77,47.3]
[1754182468340,0.71,159.82,159.77,53.89781929]
[1754182468565,0.71,159.82,159.78,0.71]
[1754182468859,0.03,159.82,159.79,0.71]
[1754182469551,0.03,159.82,159.8,0.71]
[1754182470564,0.03,159.82,159.81,6.59781929]
[1754182471753,16.78468397,159.92,159.81,6.59781929]
[1754182471949,5.88781929,159.87,159.82,6.59781929]
[1754182472153,5.88781929,159.87,159.83,0.71]
[1754182472346,5.88781929,159.85,159.82,47.26]
[1754182472570,5.88781929,159.84,159.82,47.26]
[1754182473769,6.33781929,159.84,159.82,47.26]
[1754182473958,5.88781929,159.84,159.82,47.26]
[1754182474158,0.45,159.86,159.82,47.26]
[1754182474465,6.33781929,159.85,159.82,47.26]
[1754182476355,5.88781929,159.85,159.82,47.26]
[1754182476543,5.88781929,159.86,159.82,47.26]
[1754182476745,5.88781929,159.88,159.83,0.71]
[1754182476968,5.88781929,159.89,159.83,6.59781929]
[1754182477155,5.88781929,159.89,159.84,6.59781929]
[1754182477478,5.88781929,159.9,159.85,0.71]
[1754182477770,5.88781929,159.89,159.85,0.71]
[1754182477960,5.88781929,159.88,159.85,0.71]
[1754182478157,5.88781929,159.89,159.85,0.71]
[1754182478582,5.88781929,159.89,159.84,5.88781929]
[1754182478888,5.88781929,159.89,159.86,0.71]
[1754182479375,6.33781929,159.89,159.84,0.71]
[1754182479751,6.33781929,159.89,159.85,0.71]
[1754182480174,5.88781929,159.89,159.85,0.71]
[1754182480578,0.03,159.93,159.86,0.71]
[1754182480579,0.48,159.93,159.86,0.71]
[1754182480759,0.48,159.93,159.87,47.2]
[1754182480957,5.88781929,159.91,159.87,47.91]
[1754182481160,5.88781929,159.92,159.88,0.71]
[1754182481558,5.88781929,159.92,159.88,5.33327125]
[1754182482670,5.91781929,159.93,159.89,5.33327125]
[1754182482877,5.91781929,159.93,159.9,0.71]
[1754182483097,0.03,159.93,159.9,5.33327125]
[1754182483393,0.03,159.93,159.9,0.71]
[1754182483878,5.91781929,159.93,159.9,0.71]
[1754182484274,0.03,159.93,159.9,0.71]
[1754182484474,5.91781929,159.93,159.88,0.71]
[1754182484781,5.91781929,159.93,159.89,0.71]
[1754182485490,0.68,159.92,159.88,4.62216196]
[1754182485698,0.68,159.92,159.88,5.33216196]
[1754182485996,5.91781929,159.93,159.88,5.33216196]
[1754182486186,6.59781929,159.93,159.88,5.33216196]
[1754182486374,6.59781929,159.93,159.88,4.62216196]
[1754182486580,6.59781929,159.93,159.89,0.71]
[1754182486998,5.91781929,159.93,159.89,0.71]
[1754182487386,5.91781929,159.93,159.9,0.71]
[1754182487569,5.91781929,159.93,159.88,4.62216196]
[1754182487770,5.88781929,159.91,159.88,4.62216196]
[1754182487971,5.88781929,159.91,159.86,0.71]
[1754182487972,5.88781929,159.89,159.86,47.16]
[1754182488470,6.56781929,159.89,159.86,47.16]
[1754182488783,5.88781929,159.88,159.86,47.16]
[1754182489893,5.88781929,159.89,159.86,47.16]
[1754182490396,0.03,159.93,159.81,0.06]
[1754182490397,5.88781929,159.87,159.82,26.0]
[1754182490696,0.68,159.88,159.82,26.0]
[1754182490697,5.88781929,159.85,159.82,47.14]
[1754182491003,5.88781929,159.85,159.82,47.85]
[1754182491368,6.56781929,159.84,159.82,47.14]
[1754182491572,5.88781929,159.84,159.82,47.14]
[1754182491917,5.88781929,159.84,159.83,0.71]
[1754182492202,5.88781929,159.87,159.83,0.71]
[1754182492700,5.88781929,159.87,159.84,0.71]
[1754182493273,5.88781929,159.85,159.81,0.06]
[1754182493469,5.88781929,159.82,159.81,0.06]
[1754182494902,5.88781929,159.84,159.81,0.77]
[1754182495302,5.88781929,159.84,159.82,0.71]
[1754182496407,0.68,159.88,159.81,0.06]
[1754182496408,5.88781929,159.85,159.83,0.71]
[1754182497406,5.88781929,159.86,159.81,10.57311102]
[1754182497604,5.88781929,159.86,159.84,0.71]
[1754182497782,5.88781929,159.87,159.84,0.71]
[1754182498114,5.88781929,159.88,159.85,0.71]
[1754182498474,5.88781929,159.88,159.86,0.71]
[1754182499627,5.88781929,159.87,159.84,5.33663764]
[1754182499828,5.88781929,159.85,159.81,0.77]
[1754182500116,5.88781929,159.83,159.81,0.06]
[1754182500279,5.88781929,159.82,159.81,0.06]
[1754182501606,0.68,159.84,159.81,0.77]
[1754182501607,5.88781929,159.84,159.81,0.77]
[1754182502118,5.88781929,159.83,159.81,0.77]
[1754182502630,5.88781929,159.85,159.82,0.71]
[1754182503123,5.88781929,159.85,159.81,0.06]
[1754182503308,5.88781929,159.85,159.82,0.71]
[1754182503695,5.88781929,159.88,159.83,6.59781929]
[1754182503910,5.88781929,159.88,159.84,0.71]
[1754182504095,6.597819,159.9,159.83,10.51807199]
[1754182504285,5.88781929,159.89,159.85,0.71]
[1754182504614,5.88781929,159.89,159.86,0.71]
[1754182504816,5.88781929,159.9,159.86,0.71]
[1754182505121,5.88781929,159.9,159.87,0.71]
[1754182505823,5.88781929,159.89,159.86,4.62966314]
[1754182506004,5.88781929,159.87,159.82,32.59781929]
[1754182506204,5.88781929,159.85,159.83,4.63101907]
[1754182506437,5.88781929,159.84,159.81,0.06]
[1754182506928,6.58781929,159.83,159.81,0.06]
[1754182507232,5.88781929,159.84,159.81,0.06]
[1754182508190,0.7,159.86,159.81,0.06]
[1754182508389,5.88781929,159.84,159.81,0.06]
[1754182508900,9.41680035,159.84,159.81,0.06]
[1754182509594,9.41680035,159.84,159.81,0.77]
[1754182509827,0.7,159.87,159.81,0.77]
[1754182509988,9.41680035,159.86,159.82,0.71]
[1754182510507,9.41680035,159.85,159.81,0.06]
[1754182510897,9.41680035,159.85,159.81,0.77]
[1754182511097,9.41680035,159.85,159.81,0.06]
[1754182511315,9.41680035,159.85,159.82,0.71]
[1754182511998,0.7,159.88,159.82,0.71]
[1754182512200,9.41680035,159.85,159.81,0.06]
[1754182512394,9.41680035,159.85,159.81,0.77]
[1754182512599,9.41680035,159.85,159.82,0.71]
[1754182513899,0.7,159.88,159.81,0.06]
[1754182513900,9.41680035,159.88,159.83,10.12680035]
[1754182514128,9.41680035,159.88,159.84,0.71]
[1754182514293,0.03,159.89,159.85,0.71]
[1754182514689,0.03,159.89,159.86,0.71]
[1754182515088,0.03,159.89,159.87,0.71]
[1754182515993,0.03,159.89,159.88,10.12680035]
[1754182516201,0.03,159.89,159.88,0.71]
[1754182517689,0.03,159.89,159.88,10.12680035]
[1754182518128,0.03,159.89,159.88,0.71]
[1754182519791,0.03,159.89,159.87,47.0]
[1754182519987,10.11680035,159.88,159.85,47.0]
[1754182520622,9.41680035,159.88,159.85,47.0]
[1754182520800,10.11680035,159.88,159.85,47.0]
[1754182521320,9.41680035,159.87,159.85,47.0]
[1754182521499,10.11680035,159.87,159.85,47.0]
[1754182522303,9.41680035,159.87,159.85,47.0]
[1754182523027,0.73,159.89,159.85,47.0]
[1754182523233,9.41680035,159.88,159.85,47.0]
[1754182524124,10.11680035,159.88,159.85,47.0]
[1754182524707,9.41680035,159.88,159.85,47.0]
[1754182525020,9.41680035,159.88,159.85,47.71]
[1754182525245,0.03,159.89,159.86,0.71]
[1754182525413,0.03,159.89,159.86,10.12680035]
[1754182525611,0.03,159.89,159.88,9.41680035]
[1754182526208,0.03,159.89,159.88,10.12680035]
[1754182530842,0.03,159.89,159.88,57.06680035]
[1754182531714,0.03,159.89,159.88,47.65]
[1754182532020,0.03,159.89,159.88,57.06680035]
[1754182532357,10.14680035,159.89,159.84,9.41680035]
[1754182532520,0.7,159.88,159.87,0.06]
[1754182532718,0.03,159.89,159.87,0.06]
[1754182534259,0.03,159.89,159.88,0.71]
[1754182534439,0.03,159.89,159.88,10.12680035]
[1754182535441,0.03,159.89,159.88,36.12680035]
[1754182536227,0.03,159.89,159.88,57.02680035]
[1754182540766,0.03,159.89,159.88,83.02680035]
[1754182541169,0.03,159.89,159.88,83.65226945]
[1754182542885,0.03,159.89,159.88,86.15892745]
[1754182543030,0.03,159.89,159.88,29.216658]
[1754182543235,0.03,159.89,159.88,82.98680035]
[1754182545666,0.03,159.89,159.88,56.98680035]
[1754182545834,0.03,159.89,159.88,59.49361635]
[1754182546030,0.03,159.89,159.88,56.98680035]
[1754182546264,0.03,159.9,159.88,56.98680035]
[1754182546450,0.03,159.9,159.89,10.75223033]
[1754182546836,0.03,159.9,159.89,10.12680035]
[1754182550455,0.03,159.9,159.89,36.12680035]
[1754182550653,0.03,159.9,159.89,35.41680035]
[1754182550878,0.03,159.9,159.89,32.58507223]
[1754182551853,0.03,159.9,159.89,38.46014446]
[1754182554090,0.03,159.9,159.89,26.0]
[1754182554254,0.03,159.9,159.89,31.87507223]
[1754182555254,0.03,159.9,159.89,78.67507223]
[1754182555460,0.03,159.9,159.89,46.8]
[1754182555784,0.03,159.9,159.89,52.67507223]
[1754182556383,0.03,159.9,159.89,53.38507223]
[1754182556757,0.03,159.9,159.89,52.67507223]
[1754182557861,0.03,159.9,159.89,53.38507223]
[1754182558285,0.03,159.9,159.89,47.51]
[1754182558485,0.03,159.9,159.89,53.38507223]
[1754182559577,0.03,159.9,159.89,54.01050221]
[1754182559758,0.03,159.9,159.89,80.01050221]
[1754182560577,0.03,159.9,159.89,79.30050221]
[1754182560782,0.03,159.9,159.89,78.63507223]
[1754182562390,0.03,159.9,159.89,79.34507223]
[1754182562993,0.03,159.9,159.89,79.97050221]
[1754182563209,0.03,159.9,159.89,53.97050221]
[1754182563365,0.03,159.9,159.89,78.63507223]
[1754182567982,0.7,159.9,159.88,5.93507223]
[1754182568290,0.03,159.9,159.89,46.74]
[1754182568787,0.7,159.9,159.89,46.74]
[1754182570390,0.03,159.9,159.89,46.74]
[1754182570584,0.03,159.9,159.89,53.30507223]
[1754182570764,0.03,159.9,159.89,52.61507223]
[1754182571594,0.03,159.9,159.89,46.74]
[1754182571770,0.7,159.9,159.89,46.74]
[1754182573309,6.57507223,159.9,159.89,46.74]
[1754182574070,0.7,159.9,159.89,46.74]
[1754182574975,0.03,159.9,159.89,46.74]
[1754182575193,0.03,159.9,159.89,52.61507223]
[1754182575570,0.03,159.9,159.89,46.74]
[1754182575774,0.03,159.9,159.89,52.61507223]
[1754182576885,0.03,159.9,159.89,46.74]
[1754182577086,0.03,159.9,159.89,52.61507223]
[1754182577284,0.03,159.9,159.89,53.30507223]
[1754182577800,0.03,159.9,159.89,79.30507223]
[1754182580196,0.03,159.9,159.89,59.18014446]
[1754182581015,5.90507223,159.9,159.88,0.6854691]
[1754182581185,0.67,159.89,159.88,0.06]
[1754182582681,6.54507223,159.89,159.88,0.06]
[1754182583616,0.03,159.9,159.88,0.06]
[1754182583782,0.7,159.9,159.89,46.66]
[1754182584517,0.03,159.9,159.89,46.66]
[1754182586818,0.03,159.9,159.89,52.53507223]
[1754182591623,0.03,159.9,159.89,46.66]
[1754182592924,0.03,159.9,159.89,52.53507223]
[1754182594716,0.03,159.9,159.89,46.66]
[1754182597531,6.59507223,159.9,159.88,0.06]
[1754182597740,6.56507223,159.89,159.88,0.06]
[1754182598034,6.56507223,159.89,159.87,0.06]
[1754182598218,5.87507223,159.88,159.87,0.06]
[1754182598614,6.56507223,159.88,159.87,0.06]
[1754182598921,23.3497562,159.88,159.87,0.06]
[1754182599125,16.78468397,159.87,159.85,0.06]
[1754182599323,22.6597562,159.86,159.85,0.06]
[1754182599633,23.3497562,159.86,159.85,0.06]
[1754182604916,5.87507223,159.86,159.85,0.06]
[1754182605112,0.03,159.9,159.85,0.06]
[1754182605113,5.87507223,159.87,159.85,0.06]
[1754182606631,5.87507223,159.88,159.85,0.78]
[1754182607013,5.90507223,159.9,159.85,5.93507223]
[1754182607216,5.90507223,159.9,159.86,47.3]
[1754182607217,0.72,159.9,159.86,47.3]
[1754182607424,6.59507223,159.9,159.86,46.58]
[1754182607926,5.90507223,159.9,159.86,46.58]
[1754182608124,0.03,159.9,159.87,0.72]
[1754182608639,5.90507223,159.9,159.87,0.72]
[1754182609144,5.87507223,159.89,159.85,0.06]
[1754182609315,5.87507223,159.86,159.85,0.06]
[1754182609710,23.3497562,159.86,159.85,0.06]
[1754182612022,22.6597562,159.86,159.85,0.06]
[1754182612458,5.87507223,159.86,159.85,0.06]
[1754182612761,5.87507223,159.87,159.85,0.06]
[1754182612931,5.87507223,159.86,159.85,0.06]
[1754182617532,0.03,159.9,159.85,53.19507223]
[1754182617714,0.03,159.9,159.86,6.59507223]
[1754182618118,0.03,159.9,159.87,0.72]
[1754182618644,0.03,159.9,159.88,0.72]
[1754182619057,0.03,159.9,159.86,5.87507223]
[1754182619225,0.03,159.9,159.89,0.72]
[1754182620408,5.90507223,159.9,159.86,0.72]
[1754182620662,5.90507223,159.9,159.85,26.06]
[1754182620663,5.87507223,159.88,159.85,46.6]
[1754182620868,5.87507223,159.89,159.85,46.6]
[1754182621158,5.87507223,159.89,159.85,47.32]
[1754182621919,5.87507223,159.89,159.86,0.72]
[1754182622739,5.90507223,159.9,159.87,0.72]
[1754182622952,0.03,159.9,159.88,0.72]
[1754182623664,0.03,159.9,159.88,6.59507223]
[1754182623818,0.03,159.9,159.89,5.87507223]
[1754182624171,0.03,159.9,159.89,0.72]
[1754182624342,0.03,159.9,159.89,5.87507223]
[1754182624665,0.03,159.9,159.89,6.59507223]
[1754182624957,0.03,159.9,159.89,0.72]
[1754182625134,0.03,159.9,159.89,47.24]
[1754182627244,0.03,159.9,159.89,53.11507223]
[1754182633733,0.03,159.9,159.89,73.24]
[1754182634066,0.03,159.9,159.89,79.11507223]
[1754182635158,0.03,159.91,159.89,58.99014446]
[1754182635358,0.03,159.91,159.9,13.05553532]
[1754182636846,0.03,159.92,159.9,13.05553532]
[1754182637158,0.03,159.92,159.91,52.99507223]
[1754182637473,0.14954444,160.0,159.94,26.0]
[1754182637672,0.14954444,160.0,159.98,26.0]
[1754182637835,0.14954444,160.0,159.99,52.31507223]
[1754182638235,0.14954444,160.0,159.99,52.99507223]
[1754182640497,0.14954444,160.0,159.99,47.12]
[1754182640664,0.14954444,160.0,159.99,52.31507223]
[1754182640841,0.14954444,160.0,159.99,52.99507223]
[1754182641562,0.14954444,160.0,159.99,47.12]
[1754182641760,0.14954444,160.0,159.99,52.99507223]
[1754182642348,0.17954444,160.0,159.99,52.99507223]
[1754182642554,0.17954444,160.0,159.99,52.95507223]
[1754182644471,0.85954444,160.0,159.96,0.68]
[1754182644658,0.85954444,160.0,159.99,5.87507223]
[1754182644863,0.85954444,160.0,159.99,46.38]
[1754182645068,0.17954444,160.0,159.99,46.38]
[1754182645268,0.17954444,160.0,159.99,52.25507223]
[1754182645471,0.17954444,160.0,159.99,52.93507223]
[1754182647177,0.14658999,160.02,160.01,26.0]
[1754182647382,0.37976997,160.02,160.01,78.88003316]
[1754182647587,0.37976997,160.02,160.01,79.56003316]
[1754182650389,0.37976997,160.02,160.01,5.87507223]
[1754182650689,0.37976997,160.02,160.01,52.23507223]
[1754182652206,1.05976997,160.02,159.99,5.87507223]
[1754182652405,0.68,160.01,160.0,46.34]
[1754182653318,0.37976997,160.02,160.0,52.21507223]
[1754182653621,1.05976997,160.02,160.0,52.21507223]
[1754182654194,0.68,160.01,160.0,46.34]
[1754182654401,6.55507223,160.01,160.0,46.34]
[1754182655189,0.68,160.01,160.0,46.34]
[1754182655799,6.55507223,160.01,160.0,46.34]
[1754182656819,6.55507223,160.01,159.92,5.87507223]
[1754182657020,17.16445394,160.02,159.93,46.32]
[1754182657021,5.87507223,159.97,159.93,46.32]
[1754182657201,0.69,159.96,159.93,46.32]
[1754182657894,5.87507223,159.97,159.93,46.32]
[1754182657895,0.69,159.95,159.93,46.32]
[1754182658289,0.69,159.97,159.93,46.32]
[1754182658492,0.69,159.96,159.93,46.32]
[1754182659491,6.56507223,159.95,159.93,46.32]
[1754182659695,0.69,159.94,159.93,52.19507223]
[1754182660012,6.56507223,159.97,159.93,46.32]
[1754182660329,0.11658999,160.0,159.93,52.19507223]
[1754182660330,5.87507223,159.99,159.93,52.19507223]
[1754182660509,0.11658999,160.0,159.96,5.87507223]
[1754182660818,0.11658999,160.0,159.97,46.32]
[1754182661533,0.11658999,160.0,159.97,47.01]
[1754182661820,0.11658999,160.0,159.99,5.87507223]
[1754182662022,0.11658999,160.0,159.99,6.50011129]
[1754182662197,0.11658999,160.0,159.99,7.19011129]
[1754182667222,0.11658999,160.0,159.99,33.19011129]
[1754182668229,0.11658999,160.0,159.99,32.56507223]
[1754182675826,0.11658999,160.0,159.99,33.19011129]
[1754182677208,0.11658999,160.0,159.99,78.80507223]
[1754182683606,0.80658999,160.0,159.99,26.0]
[1754182683810,6.68166222,160.0,159.97,2.505402]
[1754182684046,6.56507223,159.99,159.97,48.725402]
[1754182684220,0.69,159.98,159.97,46.22]
[1754182684419,0.80658999,160.0,159.97,46.22]
[1754182684619,0.69,159.99,159.97,46.22]
[1754182685340,0.69,159.98,159.97,46.22]
[1754182686112,6.56507223,159.98,159.93,0.06]
[1754182686316,5.87507223,159.95,159.94,46.22]
[1754182686518,23.3497562,159.95,159.93,0.06]
[1754182686757,6.57507223,159.94,159.93,0.06]
[1754182687047,6.57507223,159.94,159.91,46.2]
[1754182687251,5.87507223,159.92,159.91,46.2]
[1754182687441,6.57507223,159.92,159.9,0.06]
[1754182687616,12.45014446,159.91,159.88,0.06]
[1754182687811,22.6597562,159.89,159.88,0.02]
[1754182688017,22.6597562,159.89,159.85,0.06]
[1754182688237,5.87507223,159.86,159.85,0.06]
[1754182688748,0.58,159.86,159.85,0.06]
[1754182688954,6.45507223,159.86,159.85,0.06]
[1754182690580,26.0,159.9,159.85,0.06]
[1754182690860,9.98864852,159.91,159.85,10.18864852]
[1754182691368,0.58,159.9,159.86,46.2]
[1754182691537,26.19333249,159.96,159.86,46.2]
[1754182691863,9.40864852,159.91,159.86,46.2]
[1754182692042,9.40864852,159.91,159.87,0.72]
[1754182692748,9.98864852,159.91,159.86,46.2]
[1754182692948,0.58,159.9,159.86,46.2]
[1754182693144,9.98864852,159.9,159.86,46.2]
[1754182693371,0.58,159.89,159.86,46.2]
[1754182693583,9.98864852,159.89,159.86,46.2]
[1754182694240,9.98864852,159.88,159.86,46.2]
[1754182695617,26.77333249,159.92,159.87,9.40864852]
[1754182695864,26.77333249,159.92,159.87,10.12864852]
[1754182696063,26.19333249,159.92,159.87,9.40864852]
[1754182696268,26.19333249,159.92,159.88,0.72]
[1754182697451,26.19333249,159.92,159.87,9.40864852]
[1754182697680,26.77333249,159.92,159.87,0.72]
[1754182698266,26.19333249,159.92,159.86,55.60864852]
[1754182698476,0.58,159.91,159.86,46.2]
[1754182698657,9.98864852,159.9,159.86,46.2]
[1754182699064,9.98864852,159.89,159.86,46.2]
[1754182699379,9.98864852,159.88,159.86,46.2]
[1754182699954,9.40864852,159.88,159.86,46.2]
[1754182700154,0.58,159.96,159.87,10.75415674]
[1754182700379,9.98864852,159.96,159.9,9.40864852]
[1754182700576,0.11658999,160.0,159.94,9.40864852]
[1754182700796,0.11658999,160.0,159.95,46.92]
[1754182700994,9.52523851,160.0,159.95,0.72]
[1754182701284,9.52523851,160.0,159.95,46.2]
[1754182701285,9.40864852,159.98,159.95,46.2]
[1754182701462,9.40864852,159.97,159.95,46.2]
[1754182701794,9.98864852,159.98,159.95,46.2]
[1754182702661,9.40864852,159.98,159.95,46.2]
[1754182703201,9.40864852,159.96,159.95,46.2]
[1754182703389,9.40864852,159.97,159.95,46.2]
[1754182703696,9.40864852,159.99,159.95,46.92]
[1754182704252,9.40864852,159.98,159.95,46.92]
[1754182704886,0.11658999,160.0,159.96,0.72]
[1754182705056,0.11658999,160.0,159.97,0.72]
[1754182706900,0.11658999,160.0,159.95,55.60864852]
[1754182707195,0.11658999,160.0,159.98,0.72]
[1754182707691,9.52523851,160.0,159.95,0.72]
[1754182707897,9.40864852,159.97,159.93,46.9]
[1754182708132,9.40864852,159.96,159.93,46.9]
[1754182709574,9.40864852,159.97,159.93,46.9]
[1754182712300,9.40864852,159.96,159.93,46.18]
[1754182712614,9.40864852,159.96,159.92,46.16]
[1754182712615,9.40864852,159.95,159.92,46.16]
[1754182712912,9.40864852,159.95,159.92,46.88]
[1754182713284,9.40864852,159.95,159.92,46.16]
[1754182713479,9.40864852,159.94,159.92,46.16]
[1754182714478,0.58,159.94,159.88,0.78]
[1754182714677,9.40864852,159.93,159.88,56.32864852]
[1754182714996,9.40864852,159.96,159.9,9.40864852]
[1754182715311,9.40864852,159.96,159.91,0.72]
[1754182715520,9.40864852,159.96,159.92,0.72]
[1754182715671,9.40864852,159.97,159.92,0.72]
[1754182715872,9.40864852,159.97,159.92,46.86]
[1754182716084,9.43864852,159.98,159.93,10.12864852]
[1754182716314,9.43864852,159.98,159.94,0.72]
[1754182716506,9.43864852,159.98,159.92,55.54864852]
[1754182716783,9.43864852,159.98,159.95,0.72]
[1754182717596,9.40864852,159.97,159.95,0.72]
[1754182718085,9.40864852,159.97,159.92,46.83]
[1754182718287,9.40864852,159.95,159.92,46.14]
[1754182718607,9.40864852,159.93,159.91,46.14]
[1754182718780,9.40864852,159.94,159.91,46.14]
[1754182719693,9.40864852,159.97,159.92,0.69]
[1754182720619,0.03,159.98,159.92,10.09864852]
[1754182720808,9.43864852,159.98,159.92,9.40864852]
[1754182721131,9.43864852,159.98,159.93,0.69]
[1754182721890,0.03,159.98,159.94,9.40864852]
[1754182722085,0.03,159.98,159.95,0.69]
[1754182722503,0.03,159.98,159.96,0.69]
[1754182723110,0.03,159.98,159.93,9.40864852]
[1754182723281,0.03,159.98,159.94,0.69]